[Event "XLV Badalona Open 2019"]
[Site "Badalona"]
[Date "2019.08.03"]
[Round "2.6"]
[White "Berdayes Ason, Dylan Isidro"]
[Black "Alexieva, Silvia"]
[Result "1-0"]
[ECO "C41"]
[WhiteElo "2461"]
[BlackElo "2273"]
[Annotator "ChessBase"]
[PlyCount "135"]
[EventDate "2019.08.02"]
[EventType "swiss"]
[EventCountry "ESP"]
[SourceTitle "playchess.com"]
[Source "ChessBase"]
[SourceQuality "1"]
[TimeControl "5400+30"]

1. e4 {[%emt 0:00:00]} d6 2. d4 {[%emt 0:00:00]} Nf6 {[%emt 0:00:00]} 3. Nc3 {[%emt 0:00:00]} e5 {[%emt 0:00:00]} 4. Nf3 {[%emt 0:00:10]} Nbd7 {[%emt 0:00:11]} 5. Bc4 {[%emt 0:00:36]} Be7 {[%emt 0:00:19]} 6. O-O {[%emt 0:00:05]} O-O {[%emt 0:00:15]} 7. a4 {[%emt 0:00:08]} a6 {[%emt 0:00:17]} 8. a5 {[%emt 0:00:37]} h6 9. h3 {[%emt 0:00:03]} exd4 {[%emt 0:01:40]} 10. Nxd4 {[%emt 0:00:03]} Ne5 {[%emt 0:00:12]} 11. Ba2 {[%emt 0:00:03]} c5 {[%emt 0:01:59]} 12. Nde2 {[%emt 0:02:23]} Nc6 {[%emt 0:07:10]} 13. Nf4 {[%emt 0:00:21]} Nxa5 {[%emt 0:00:12]} 14. Ng6 {[%emt 0:00:09]} Re8 {[%emt 0:03:09]} 15. Bf4 {[%emt 0:06:02]} Nc6 {[%emt 0:04:09]} 16. Nxe7+ {[%emt 0:02:51]} Rxe7 {[%emt 0:19:32]} 17. Qxd6 {[%emt 0:30:17]} Be6 {[%emt 0:00:37]} 18. Bxe6 Rxe6 {[%emt 0:00:06]} 19. Qxd8+ {[%emt 0:01:12]} Rxd8 {[%emt 0:05:39]} 20. f3 {[%emt 0:03:01]} Nb4 {[%emt 0:04:20]} 21. Rf2 {[%emt 0:04:25]} b6 {[%emt 0:03:15]} 22. Rd1 {[%emt 0:00:02]} Rxd1+ {[%emt 0:02:49]} 23. Nxd1 {[%emt 0:01:59]} Re7 {[%emt 0:00:38]} 24. Rd2 {[%emt 0:00:06]} Rd7 25. Rxd7 {[%emt 0:00:36]} Nxd7 {[%emt 0:00:34]} 26. Ne3 {[%emt 0:01:40]} f6 {[%emt 0:04:19]} 27. Bc7 {[%emt 0:00:14]} Kf7 {[%emt 0:00:00]} 28. Kf1 {[%emt 0:01:00]} b5 {[%emt 0:06:41]} 29. Ke2 {[%emt 0:08:00]} Nc6 {[%emt 0:02:26]} 30. Kd2 {[%emt 0:02:18]} Ne7 {[%emt 0:00:39]} 31. h4 {[%emt 0:01:49]} h5 {[%emt 0:03:06]} 32. Bd6 {[%emt 0:01:21]} Nc8 {[%emt 0:00:04]} 33. Bh2 {[%emt 0:11:29]} Ne7 {[%emt 0:00:30]} 34. Bd6 {[%emt 0:00:30]} Nc8 {[%emt 0:00:00]} 35. Bc7 {[%emt 0:00:18]} Ne7 {[%emt 0:00:19]} 36. c4 {[%emt 0:06:37]} Ng6 {[%emt 0:08:58]} 37. Bg3 {[%emt 0:01:06]} Nge5 {[%emt 0:01:48]} 38. b3 {[%emt 0:03:37]} b4 {[%emt 0:05:08]} 39. Nf5 {[%emt 0:01:11]} Nc6 {[%emt 0:00:42]} 40. Bf2 {[%emt 0:00:12]} Na5 {[%emt 0:00:11]} 41. Kc2 {[%emt 0:03:34]} g6 {[%emt 0:03:25]} 42. Ne3 {[%emt 0:00:29]} Nb7 {[%emt 0:01:24]} 43. Nd5 {[%emt 0:01:13]} a5 {[%emt 0:02:56]} 44. Bg3 {[%emt 0:04:04]} Nf8 {[%emt 0:00:30]} 45. Nf4 {[%emt 0:00:25]} Nd7 {[%emt 0:02:52]} 46. Bf2 {[%emt 0:00:16]} Nb6 {[%emt 0:00:04]} 47. Nd3 Nd7 {[%emt 0:00:06]} 48. Be3 {[%emt 0:02:27]} Ke6 {[%emt 0:00:56]} 49. Kd2 {[%emt 0:00:32]} f5 {[%emt 0:00:04]} 50. exf5+ {[%emt 0:01:50]} Kxf5 {[%emt 0:00:54]} 51. Kc2 {[%emt 0:00:52]} Ke6 {[%emt 0:01:19]} 52. Nf2 {[%emt 0:00:13]} Kd6 {[%emt 0:00:23]} 53. Ne4+ {[%emt 0:00:18]} Kc6 {[%emt 0:00:00]} 54. Bf4 {[%emt 0:00:30]} a4 {[%emt 0:00:49]} 55. bxa4 {[%emt 0:00:27]} Nb6 {[%emt 0:00:30]} 56. Nd2 {[%emt 0:00:30]} Nxa4 {[%emt 0:02:23]} 57. g4 {[%emt 0:00:31]} Na5 {[%emt 0:01:46]} 58. Be5 {[%emt 0:00:04]} Nb6 {[%emt 0:00:09]} 59. Kd3 Nd7 {[%emt 0:00:22]} 60. Bg7 {[%emt 0:01:32]} Kd6 {[%emt 0:01:54]} 61. Ne4+ Ke6 62. gxh5 {[%emt 0:01:46]} gxh5 {[%emt 0:00:32]} 63. Ng3 {[%emt 0:00:53]} Nb6 {[%emt 0:00:55]} 64. Nxh5 {[%emt 0:00:55]} Nbxc4 {[%emt 0:01:16]} 65. Ng3 {[%emt 0:00:05]} Nd6 {[%emt 0:00:30]} 66. h5 {[%emt 0:00:30]} c4+ {[%emt 0:00:30]} 67. Kc2 {[%emt 0:00:30]} Nf5 {[%emt 0:01:14]} 68. h6 {[%emt 0:01:19]} 1-0

[Event "XLV Badalona Open 2019"]
[Site "Badalona"]
[Date "2019.08.03"]
[Round "2.7"]
[White "Midoux, Sebastien"]
[Black "Valderrama Quiceno, Esteban Alb"]
[Result "1/2-1/2"]
[ECO "A42"]
[WhiteElo "2242"]
[BlackElo "2423"]
[Annotator "ChessBase"]
[PlyCount "101"]
[EventDate "2019.08.02"]
[EventType "swiss"]
[EventCountry "ESP"]
[SourceTitle "playchess.com"]
[Source "ChessBase"]
[SourceQuality "1"]
[TimeControl "5400+30"]

1. c4 {[%emt 0:02:20]} g6 {[%emt 0:13:34]} 2. Nc3 {[%emt 0:00:51]} Bg7 {[%emt 0:02:11]} 3. d4 {[%emt 0:00:18]} d6 {[%emt 0:00:45]} 4. e4 {[%emt 0:07:08]} c6 {[%emt 0:02:04]} 5. h3 {[%emt 0:03:09]} a6 {[%emt 0:00:34]} 6. Nf3 {[%emt 0:10:56]} Nf6 {[%emt 0:04:57]} 7. Be3 {[%emt 0:20:48]} O-O {[%emt 0:02:54]} 8. a4 {[%emt 0:01:29]} a5 {[%emt 0:01:22]} 9. Be2 Na6 {[%emt 0:00:10]} 10. O-O {[%emt 0:00:47]} Nd7 {[%emt 0:00:58]} 11. Qd2 {[%emt 0:07:26]} e5 {[%emt 0:04:26]} 12. Rad1 {[%emt 0:01:17]} exd4 {[%emt 0:01:34]} 13. Bxd4 {[%emt 0:03:16]} Bxd4 {[%emt 0:01:51]} 14. Qxd4 {[%emt 0:09:27]} Qb6 {[%emt 0:00:08]} 15. Qxb6 {[%emt 0:00:30]} Nxb6 {[%emt 0:00:38]} 16. Rxd6 {[%emt 0:02:12]} Nc5 {[%emt 0:02:11]} 17. b3 {[%emt 0:02:35]} Re8 {[%emt 0:11:46]} 18. Bd3 Nxd3 {[%emt 0:00:06]} 19. Rxd3 {[%emt 0:01:29]} Nd7 {[%emt 0:01:25]} 20. Re3 {[%emt 0:06:37]} Nc5 {[%emt 0:03:44]} 21. e5 {[%emt 0:00:12]} Bf5 22. Nd4 {[%emt 0:00:07]} Bd3 {[%emt 0:02:49]} 23. Rd1 Rad8 {[%emt 0:00:28]} 24. Rexd3 {[%emt 0:00:56]} Nxd3 {[%emt 0:00:30]} 25. Rxd3 {[%emt 0:00:05]} Rxe5 {[%emt 0:20:18]} 26. Re3 {[%emt 0:00:47]} f6 {[%emt 0:00:30]} 27. Rxe5 {[%emt 0:00:30]} fxe5 {[%emt 0:00:54]} 28. Nde2 {[%emt 0:00:46]} Rd2 {[%emt 0:00:58]} 29. g4 {[%emt 0:00:09]} Rb2 {[%emt 0:09:50]} 30. Nc1 {[%emt 0:01:53]} Kf7 {[%emt 0:02:59]} 31. Kg2 {[%emt 0:00:28]} Ke7 {[%emt 0:01:08]} 32. Kf3 {[%emt 0:00:30]} Rc2 {[%emt 0:02:03]} 33. N3e2 {[%emt 0:00:47]} Rd2 {[%emt 0:00:39]} 34. Ke3 {[%emt 0:00:12]} Rd1 {[%emt 0:01:26]} 35. Nd3 {[%emt 0:03:38]} Rh1 {[%emt 0:00:24]} 36. Nxe5 {[%emt 0:06:03]} Rb1 {[%emt 0:00:56]} 37. Nd4 {[%emt 0:00:01]} c5 {[%emt 0:00:30]} 38. Nb5 {[%emt 0:00:30]} Rxb3+ {[%emt 0:00:36]} 39. Nd3 {[%emt 0:00:15]} b6 {[%emt 0:02:02]} 40. Ke4 {[%emt 0:02:34]} Rb1 {[%emt 0:02:09]} 41. f4 {[%emt 0:00:25]} Rh1 {[%emt 0:00:51]} 42. Nc3 {[%emt 0:00:26]} Rxh3 {[%emt 0:00:30]} 43. Nd5+ {[%emt 0:03:21]} Kd6 {[%emt 0:00:12]} 44. g5 {[%emt 0:01:33]} Rh2 {[%emt 0:00:30]} 45. Nxb6 {[%emt 0:00:30]} Re2+ {[%emt 0:00:30]} 46. Kf3 {[%emt 0:00:30]} Ra2 {[%emt 0:00:30]} 47. Ne5 {[%emt 0:00:30]} Rb2 {[%emt 0:01:01]} 48. Nd5 {[%emt 0:00:46]} Ra2 {[%emt 0:00:05]} 49. Nb6 {[%emt 0:00:30]} Rb2 {[%emt 0:00:05]} 50. Nd5 {[%emt 0:02:05]} Ra2 {[%emt 0:00:51]} 51. Nb6 1/2-1/2

[Event "XLV Badalona Open 2019"]
[Site "Badalona"]
[Date "2019.08.03"]
[Round "2.8"]
[White "Valero Recalde, Pablo"]
[Black "Walter Travella, German"]
[Result "0-1"]
[ECO "A45"]
[WhiteElo "1714"]
[BlackElo "1940"]
[Annotator "NA"]
[PlyCount "63"]
[EventDate "2019.08.02"]
[EventType "swiss"]
[EventCountry "ESP"]
[SourceTitle "playchess.com"]
[Source "ChessBase"]
[SourceQuality "1"]
[TimeControl "5400+30"]

1. d4 {[%emt 0:02:51]} Nf6 {[%emt 0:01:31]} 2. Nc3 {[%emt 0:00:34]} d5 {[%emt 0:03:08]} 3. Bf4 {[%emt 0:00:40]} c6 {[%emt 0:03:10]} 4. e3 {[%emt 0:00:48]} Bf5 {[%emt 0:01:33]} 5. f3 e6 {[%emt 0:00:12]} 6. g4 {[%emt 0:01:11]} Bg6 {[%emt 0:01:59]} 7. h4 {[%emt 0:00:19]} h6 8. h5 Bh7 {[%emt 0:00:58]} 9. Bd3 {[%emt 0:00:33]} Bd6 {[%emt 0:01:04]} 10. Nge2 {[%emt 0:05:22]} Qc7 11. Qd2 e5 {[%emt 0:06:03]} 12. dxe5 {[%emt 0:00:55]} Bxe5 13. O-O-O {[%emt 0:08:17]} Nbd7 {[%emt 0:01:54]} 14. Bxh7 {[%emt 0:03:39]} Nxh7 {[%emt 0:09:47]} 15. Nd4 {[%emt 0:11:00]} O-O {[%emt 0:02:19]} 16. Rdg1 {[%emt 0:08:30]} Qa5 17. Bxe5 Nxe5 {[%emt 0:00:39]} 18. f4 {[%emt 0:00:50]} Nc4 {[%emt 0:04:26]} 19. Qd3 {[%emt 0:05:01]} Rfe8 {[%emt 0:16:25]} 20. Nf5 {[%emt 0:22:12]} f6 {[%emt 0:02:50]} 21. Rg3 {[%emt 0:03:15]} b5 {[%emt 0:07:06]} 22. Nd4 {[%emt 0:03:46]} Qb6 {[%emt 0:02:54]} 23. Nf5 {[%emt 0:01:20]} Rad8 {[%emt 0:03:49]} 24. Rhg1 {[%emt 0:01:59]} b4 {[%emt 0:03:07]} 25. Na4 {[%emt 0:01:23]} Qa5 26. Qb3 {[%emt 0:00:48]} Re4 {[%emt 0:02:19]} 27. Nd4 {[%emt 0:00:45]} Rd6 {[%emt 0:02:51]} 28. f5 {[%emt 0:03:43]} Nf8 {[%emt 0:04:46]} 29. Ne2 {[%emt 0:08:46]} c5 {[%emt 0:02:33]} 30. Nf4 {[%emt 0:02:14]} Nxe3 {[%emt 0:00:21]} 31. Rxe3 c4 32. Nxd5 0-1

[Event "XLV Badalona Open 2019"]
[Site "Badalona"]
[Date "2019.08.03"]
[Round "2.9"]
[White "Gisbert Mir, Alfonso"]
[Black "Ankit, Dalal"]
[Result "1/2-1/2"]
[ECO "D10"]
[WhiteElo "1936"]
[BlackElo "1680"]
[Annotator "NA"]
[PlyCount "55"]
[EventDate "2019.08.02"]
[EventType "swiss"]
[EventCountry "ESP"]
[SourceTitle "playchess.com"]
[Source "ChessBase"]
[SourceQuality "1"]
[TimeControl "5400+30"]

1. d4 {[%emt 0:00:00]} d5 {[%emt 0:00:00]} 2. c4 {[%emt 0:00:00]} c6 {[%emt 0:00:00]} 3. cxd5 {[%emt 0:01:07]} cxd5 {[%emt 0:00:00]} 4. Nc3 {[%emt 0:00:18]} Nf6 {[%emt 0:01:01]} 5. Bf4 {[%emt 0:01:30]} e6 {[%emt 0:03:11]} 6. e3 {[%emt 0:02:05]} Be7 {[%emt 0:00:46]} 7. Bd3 {[%emt 0:01:37]} O-O {[%emt 0:00:30]} 8. Nf3 {[%emt 0:00:37]} a6 {[%emt 0:08:54]} 9. O-O {[%emt 0:05:15]} Nbd7 {[%emt 0:00:30]} 10. Ne5 {[%emt 0:03:02]} Nxe5 {[%emt 0:06:18]} 11. Bxe5 {[%emt 0:02:55]} b5 {[%emt 0:02:01]} 12. a3 {[%emt 0:00:30]} Bb7 {[%emt 0:00:38]} 13. Rc1 {[%emt 0:02:42]} Rc8 {[%emt 0:03:22]} 14. f4 {[%emt 0:12:02]} Ne4 {[%emt 0:00:09]} 15. Bxe4 {[%emt 0:03:51]} dxe4 {[%emt 0:00:30]} 16. f5 f6 {[%emt 0:12:54]} 17. Bg3 {[%emt 0:02:01]} exf5 {[%emt 0:00:02]} 18. Rxf5 {[%emt 0:04:43]} g6 {[%emt 0:04:30]} 19. Rf1 Bd6 {[%emt 0:00:05]} 20. Bxd6 {[%emt 0:07:56]} Qxd6 {[%emt 0:00:27]} 21. Qg4 {[%emt 0:02:57]} f5 {[%emt 0:00:30]} 22. Qg5 {[%emt 0:08:08]} Kg7 {[%emt 0:09:04]} 23. Qh4 {[%emt 0:02:38]} Rc4 {[%emt 0:01:27]} 24. g4 {[%emt 0:00:30]} f4 {[%emt 0:16:41]} 25. g5 {[%emt 0:07:14]} fxe3 {[%emt 0:06:39]} 26. Nxe4 {[%emt 0:01:44]} Rxc1 {[%emt 0:06:49]} 27. Rxc1 {[%emt 0:00:29]} Bxe4 28. Qxe4 1/2-1/2

[Event "XLV Badalona Open 2019"]
[Site "Badalona"]
[Date "2019.08.03"]
[Round "2.10"]
[White "Moncada Correa, Sara"]
[Black "Sanz Ogaya, Mario"]
[Result "*"]
[ECO "B23"]
[WhiteElo "1909"]
[BlackElo "1945"]
[Annotator "NA"]
[PlyCount "30"]
[EventDate "2019.08.02"]
[EventType "swiss"]
[EventCountry "ESP"]
[SourceTitle "playchess.com"]
[Source "ChessBase"]
[SourceQuality "1"]
[TimeControl "5400+30"]

1. e4 c5 2. Nc3 g6 3. f4 Bg7 4. Nf3 e6 5. e5 Nh6 6. g3 O-O 7. Bg2 d6 8. O-O Nc6 9. exd6 Qxd6 10. Ne4 Qe7 11. d3 b6 12. Ne5 Bb7 13. g4 Nxe5 14. fxe5 Bxe4 15. Bxe4 Rad8 *

[Event "XLV Badalona Open 2019"]
[Site "Badalona"]
[Date "2019.08.03"]
[Round "2.10"]
[White "Alvaro Hermosa, Ramon"]
[Black "Sanz Ogaya, Mario"]
[Result "0-1"]
[ECO "B23"]
[WhiteElo "1627"]
[BlackElo "1945"]
[Annotator "NA"]
[PlyCount "62"]
[EventDate "2019.08.02"]
[EventType "swiss"]
[EventCountry "ESP"]
[SourceTitle "playchess.com"]
[Source "ChessBase"]
[SourceQuality "1"]
[TimeControl "5400+30"]

1. e4 c5 2. Nc3 g6 3. f4 Bg7 4. Nf3 e6 5. e5 Nh6 6. g3 O-O 7. Bg2 d6 8. O-O Nc6 9. exd6 Qxd6 10. Ne4 Qe7 11. d3 b6 12. Ne5 Bb7 13. g4 Nxe5 14. fxe5 Bxe4 15. Bxe4 Rad8 16. Qf3 Qh4 17. Bxh6 Qxh6 18. Qg3 Qg5 19. h4 Qxe5 20. Qxe5 Bxe5 21. Rab1 f5 22. Bf3 Bd6 23. Rbe1 Kf7 24. Kg2 Be7 25. Kh3 Bf6 26. b3 Rd4 27. Re2 Re8 28. Rfe1 e5 29. Kg3 fxg4 30. Bxg4 h5 31. Bh3 Bxh4+ 0-1

[Event "XLV Badalona Open 2019"]
[Site "Badalona"]
[Date "2019.08.04"]
[Round "3.2"]
[White "Barbero Sendic, Alejandro"]
[Black "Oliva Castaneda, Kevel"]
[Result "1/2-1/2"]
[ECO "B47"]
[WhiteElo "2348"]
[BlackElo "2467"]
[Annotator "ChessBase"]
[PlyCount "60"]
[EventDate "2019.08.02"]
[EventType "swiss"]
[EventCountry "ESP"]
[SourceTitle "playchess.com"]
[Source "ChessBase"]
[SourceQuality "1"]
[TimeControl "5400+30"]

1. e4 c5 {[%emt 0:00:00]} 2. Nf3 {[%emt 0:02:41]} e6 {[%emt 0:00:00]} 3. d4 {[%emt 0:00:08]} cxd4 {[%emt 0:00:00]} 4. Nxd4 Nc6 {[%emt 0:00:00]} 5. Nc3 {[%emt 0:00:15]} Qc7 6. g3 {[%emt 0:00:41]} a6 {[%emt 0:00:09]} 7. Bg2 {[%emt 0:00:10]} d6 {[%emt 0:00:00]} 8. Nxc6 {[%emt 0:00:03]} bxc6 {[%emt 0:00:52]} 9. O-O {[%emt 0:02:54]} Bb7 {[%emt 0:01:28]} 10. Na4 {[%emt 0:01:41]} Nf6 {[%emt 0:02:32]} 11. b3 {[%emt 0:00:38]} Be7 {[%emt 0:00:38]} 12. Bb2 {[%emt 0:00:12]} O-O {[%emt 0:00:11]} 13. c4 {[%emt 0:03:55]} c5 {[%emt 0:00:21]} 14. e5 {[%emt 0:00:09]} dxe5 {[%emt 0:00:27]} 15. Bxb7 {[%emt 0:00:20]} Qxb7 {[%emt 0:02:34]} 16. Bxe5 {[%emt 0:01:54]} Qc6 {[%emt 0:03:03]} 17. Qe2 {[%emt 0:00:47]} Nd7 {[%emt 0:03:51]} 18. Bb2 {[%emt 0:06:20]} Rfd8 {[%emt 0:03:00]} 19. Rae1 Bf6 {[%emt 0:00:05]} 20. Bxf6 {[%emt 0:16:16]} Nxf6 {[%emt 0:00:20]} 21. Qe5 {[%emt 0:03:18]} Rac8 {[%emt 0:01:39]} 22. Rd1 {[%emt 0:13:36]} Ne4 {[%emt 0:18:08]} 23. Qf4 {[%emt 0:03:48]} Nd6 {[%emt 0:05:54]} 24. Rfe1 {[%emt 0:00:36]} Nf5 {[%emt 0:00:03]} 25. Rxd8+ {[%emt 0:00:20]} Rxd8 {[%emt 0:00:13]} 26. Qe4 {[%emt 0:25:23]} Qc8 {[%emt 0:00:49]} 27. Kg2 {[%emt 0:01:23]} Rd4 {[%emt 0:00:34]} 28. Qe5 {[%emt 0:02:48]} Qb7+ {[%emt 0:24:45]} 29. f3 {[%emt 0:04:04]} Qb4 30. Re2 Rd2 1/2-1/2

[Event "XLV Badalona Open 2019"]
[Site "Badalona"]
[Date "2019.08.04"]
[Round "3.4"]
[White "Rojas Keim, Luis"]
[Black "Berdayes Ason, Dylan Isidro"]
[Result "1-0"]
[ECO "B07"]
[WhiteElo "2338"]
[BlackElo "2461"]
[Annotator "ChessBase"]
[PlyCount "67"]
[EventDate "2019.08.02"]
[EventType "swiss"]
[EventCountry "ESP"]
[SourceTitle "playchess.com"]
[Source "ChessBase"]
[SourceQuality "1"]
[TimeControl "5400+30"]

1. e4 d6 2. d4 {[%emt 0:00:00]} Nf6 {[%emt 0:03:47]} 3. Nc3 {[%emt 0:00:00]} g6 {[%emt 0:00:00]} 4. Be3 {[%emt 0:00:04]} c6 {[%emt 0:00:00]} 5. Qd2 Nbd7 {[%emt 0:00:10]} 6. O-O-O {[%emt 0:01:53]} b5 7. f3 {[%emt 0:01:32]} b4 {[%emt 0:00:47]} 8. Nce2 {[%emt 0:02:58]} a5 {[%emt 0:03:25]} 9. Kb1 {[%emt 0:05:10]} Ba6 10. Bh6 {[%emt 0:00:01]} Bxh6 {[%emt 0:02:19]} 11. Qxh6 {[%emt 0:02:17]} Qb6 {[%emt 0:05:33]} 12. Nh3 {[%emt 0:12:26]} a4 13. Nc1 {[%emt 0:00:08]} Bxf1 {[%emt 0:00:38]} 14. Rhxf1 {[%emt 0:04:34]} c5 {[%emt 0:06:01]} 15. dxc5 {[%emt 0:11:22]} Qxc5 {[%emt 0:07:22]} 16. Nf4 {[%emt 0:01:12]} Rc8 {[%emt 0:01:08]} 17. Rd2 {[%emt 0:05:10]} Nb6 {[%emt 0:02:47]} 18. Ncd3 {[%emt 0:03:30]} Qb5 {[%emt 0:07:18]} 19. b3 {[%emt 0:09:16]} Nbd7 {[%emt 0:04:55]} 20. Rfd1 {[%emt 0:13:01]} Nc5 21. Nb2 {[%emt 0:00:05]} axb3 {[%emt 0:09:45]} 22. cxb3 Ncxe4 {[%emt 0:07:09]} 23. fxe4 {[%emt 0:00:38]} Nxe4 {[%emt 0:12:14]} 24. Nd5 {[%emt 0:02:41]} Kd7 {[%emt 0:02:21]} 25. Nc4 {[%emt 0:07:32]} Rc5 {[%emt 0:02:23]} 26. Qg7 {[%emt 0:00:07]} Nxd2+ {[%emt 0:00:48]} 27. Rxd2 Qb8 {[%emt 0:00:02]} 28. Qxf7 {[%emt 0:05:03]} Qf8 {[%emt 0:00:34]} 29. Nf6+ {[%emt 0:05:20]} Kc7 {[%emt 0:03:49]} 30. Nxd6 {[%emt 0:01:41]} Kc6 {[%emt 0:01:54]} 31. Nd7 {[%emt 0:00:32]} Kxd7 {[%emt 0:00:14]} 32. Ne4+ {[%emt 0:00:30]} Kc6 {[%emt 0:00:01]} 33. Qe6+ {[%emt 0:00:34]} Kb5 34. Nxc5 1-0

[Event "XLV Badalona Open 2019"]
[Site "Badalona"]
[Date "2019.08.04"]
[Round "3.5"]
[White "Becerra, Juan David"]
[Black "Perez Mitjans, Orelvis"]
[Result "1/2-1/2"]
[ECO "C25"]
[WhiteElo "2327"]
[BlackElo "2416"]
[Annotator "NA"]
[PlyCount "45"]
[EventDate "2019.08.02"]
[EventType "swiss"]
[EventCountry "ESP"]
[SourceTitle "playchess.com"]
[Source "ChessBase"]
[SourceQuality "1"]
[TimeControl "5400+30"]

1. e4 {[%emt 0:05:59]} e5 {[%emt 0:01:03]} 2. Nc3 {[%emt 0:00:14]} Nc6 {[%emt 0:00:06]} 3. g3 Nf6 {[%emt 0:00:07]} 4. Bg2 {[%emt 0:00:34]} Bc5 5. d3 {[%emt 0:00:00]} d6 {[%emt 0:00:49]} 6. Na4 Bb6 {[%emt 0:03:23]} 7. Nxb6 {[%emt 0:00:58]} axb6 {[%emt 0:03:16]} 8. Ne2 d5 {[%emt 0:00:06]} 9. exd5 {[%emt 0:03:22]} Nxd5 {[%emt 0:00:15]} 10. O-O {[%emt 0:01:12]} O-O {[%emt 0:05:27]} 11. h3 {[%emt 0:05:31]} Be6 {[%emt 0:00:52]} 12. Kh2 {[%emt 0:01:38]} Qd7 {[%emt 0:12:54]} 13. a3 {[%emt 0:26:45]} Rfe8 {[%emt 0:04:52]} 14. f4 {[%emt 0:00:02]} exf4 {[%emt 0:00:30]} 15. Nxf4 {[%emt 0:00:30]} Nxf4 {[%emt 0:00:44]} 16. Bxf4 Bd5 {[%emt 0:00:05]} 17. Bxd5 {[%emt 0:24:30]} Qxd5 {[%emt 0:00:30]} 18. Bxc7 Nd4 {[%emt 0:00:13]} 19. Rf2 {[%emt 0:00:33]} Re3 {[%emt 0:00:45]} 20. Bxb6 {[%emt 0:14:03]} Nf3+ {[%emt 0:04:37]} 21. Kg2 {[%emt 0:02:16]} Nh4+ {[%emt 0:00:20]} 22. Kh2 {[%emt 0:00:02]} Nf3+ {[%emt 0:01:04]} 23. Kg2 1/2-1/2

[Event "XLV Badalona Open 2019"]
[Site "Badalona"]
[Date "2019.08.04"]
[Round "3.6"]
[White "Cu Hor, Winston Darwin"]
[Black "Avila Pavas, Santiago"]
[Result "0-1"]
[ECO "A13"]
[WhiteElo "2335"]
[BlackElo "2411"]
[Annotator "NA"]
[PlyCount "148"]
[EventDate "2019.08.02"]
[EventType "swiss"]
[EventCountry "ESP"]
[SourceTitle "playchess.com"]
[Source "ChessBase"]
[SourceQuality "1"]
[TimeControl "5400+30"]

1. Nf3 {[%emt 0:01:23]} Nf6 2. c4 {[%emt 0:00:21]} e6 {[%emt 0:00:08]} 3. g3 {[%emt 0:00:32]} d5 {[%emt 0:00:00]} 4. Bg2 {[%emt 0:00:13]} dxc4 {[%emt 0:13:05]} 5. O-O {[%emt 0:03:12]} Be7 {[%emt 0:02:22]} 6. Na3 {[%emt 0:00:49]} O-O {[%emt 0:04:30]} 7. Nxc4 {[%emt 0:03:38]} c5 {[%emt 0:00:59]} 8. b3 {[%emt 0:00:36]} Nc6 {[%emt 0:01:31]} 9. Bb2 {[%emt 0:07:09]} Nd5 {[%emt 0:04:15]} 10. d4 {[%emt 0:03:19]} cxd4 {[%emt 0:02:18]} 11. Nxd4 {[%emt 0:06:23]} Bd7 {[%emt 0:02:23]} 12. Nf5 {[%emt 0:06:47]} Bf6 {[%emt 0:02:15]} 13. Bxf6 {[%emt 0:01:03]} Nxf6 {[%emt 0:00:34]} 14. Nfd6 {[%emt 0:00:57]} Rb8 {[%emt 0:09:27]} 15. Rc1 {[%emt 0:07:35]} Qe7 {[%emt 0:03:42]} 16. Qd2 {[%emt 0:00:17]} Rfd8 {[%emt 0:05:04]} 17. Rfd1 {[%emt 0:07:08]} Be8 {[%emt 0:28:49]} 18. Qb2 {[%emt 0:03:43]} Qf8 {[%emt 0:00:14]} 19. Nxe8 {[%emt 0:06:22]} Qxe8 {[%emt 0:00:14]} 20. Nd6 {[%emt 0:02:57]} Qe7 {[%emt 0:02:30]} 21. Bxc6 {[%emt 0:06:57]} bxc6 {[%emt 0:04:10]} 22. Qe5 {[%emt 0:07:27]} Nd5 {[%emt 0:00:26]} 23. Nf5 {[%emt 0:00:56]} Qf8 {[%emt 0:03:47]} 24. Nd4 {[%emt 0:02:54]} Nb4 {[%emt 0:00:03]} 25. a3 {[%emt 0:02:01]} Rd5 {[%emt 0:00:56]} 26. Qe4 {[%emt 0:01:17]} Na2 {[%emt 0:03:30]} 27. Rc2 {[%emt 0:00:51]} Qxa3 {[%emt 0:02:01]} 28. Ra1 Nc3 {[%emt 0:03:20]} 29. Rxa3 {[%emt 0:00:47]} Nxe4 {[%emt 0:00:00]} 30. Nxc6 {[%emt 0:00:13]} Rd1+ {[%emt 0:00:05]} 31. Kg2 Rb7 32. Rxa7 {[%emt 0:02:03]} Rxa7 {[%emt 0:00:30]} 33. Nxa7 {[%emt 0:00:41]} g5 {[%emt 0:00:53]} 34. b4 {[%emt 0:02:06]} Ra1 {[%emt 0:00:12]} 35. Nc6 {[%emt 0:01:00]} Rb1 {[%emt 0:01:09]} 36. Rc4 {[%emt 0:01:13]} Nf6 {[%emt 0:00:16]} 37. Rc5 {[%emt 0:00:47]} h6 {[%emt 0:00:22]} 38. Rc4 {[%emt 0:03:29]} Rb2 {[%emt 0:01:29]} 39. Nd4 {[%emt 0:00:48]} Kh7 40. Nc2 {[%emt 0:00:11]} Kg6 {[%emt 0:00:45]} 41. h3 Nd5 {[%emt 0:00:07]} 42. e4 {[%emt 0:01:02]} Nb6 {[%emt 0:01:31]} 43. Rc7 {[%emt 0:00:37]} Na8 {[%emt 0:00:04]} 44. Rc6 {[%emt 0:00:46]} Kf6 {[%emt 0:00:09]} 45. Ne3 Ke7 46. Ra6 {[%emt 0:02:52]} Nc7 {[%emt 0:00:31]} 47. Ra7 {[%emt 0:00:08]} Kd8 {[%emt 0:01:11]} 48. Ng4 {[%emt 0:00:25]} h5 {[%emt 0:00:04]} 49. Ne5 {[%emt 0:00:23]} f6 {[%emt 0:00:55]} 50. Nf7+ {[%emt 0:00:13]} Kd7 {[%emt 0:00:01]} 51. e5 {[%emt 0:00:17]} fxe5 {[%emt 0:00:16]} 52. Nxe5+ {[%emt 0:00:52]} Kc8 53. Nf7 {[%emt 0:00:06]} g4 {[%emt 0:01:33]} 54. hxg4 hxg4 {[%emt 0:00:00]} 55. Nd6+ {[%emt 0:01:04]} Kd8 {[%emt 0:01:50]} 56. Nb7+ {[%emt 0:02:39]} Kc8 {[%emt 0:00:12]} 57. Nc5 {[%emt 0:02:38]} Nd5 {[%emt 0:01:19]} 58. Ra3 Kc7 {[%emt 0:00:01]} 59. Nxe6+ {[%emt 0:01:01]} Kd6 {[%emt 0:00:59]} 60. Nd4 {[%emt 0:00:56]} Nxb4 {[%emt 0:00:23]} 61. Nf5+ {[%emt 0:00:30]} Ke6 {[%emt 0:00:30]} 62. Ne3 {[%emt 0:00:00]} Nc2 {[%emt 0:00:21]} 63. Ra6+ {[%emt 0:00:36]} Kf7 {[%emt 0:00:14]} 64. Nxc2 {[%emt 0:00:05]} Rxc2 65. Ra4 {[%emt 0:00:02]} Kf6 {[%emt 0:00:40]} 66. Rxg4 Kf5 {[%emt 0:00:00]} 67. Rf4+ {[%emt 0:00:50]} Kg5 {[%emt 0:00:00]} 68. Kh3 Rc8 {[%emt 0:00:00]} 69. Ra4 {[%emt 0:00:31]} Rh8+ {[%emt 0:00:01]} 70. Kg2 {[%emt 0:00:05]} Rc8 {[%emt 0:00:01]} 71. Ra5+ {[%emt 0:00:10]} Kg6 {[%emt 0:00:11]} 72. f4 {[%emt 0:00:12]} Rc1 {[%emt 0:00:00]} 73. Ra6+ {[%emt 0:00:00]} Kf5 {[%emt 0:00:00]} 74. Ra5+ {[%emt 0:00:00]} Ke4 {[%emt 0:00:00]} 0-1